bitfinex/quotes_ETHUSD_20250920
["timestamp","ask_amount","ask_price","bid_price","bid_amount"]
[1758387535877,0.25165098,4508.8,4508.7,10.94258238]
[1758387536547,0.49575098,4508.8,4508.7,10.94258238]
[1758387538080,0.25165098,4508.8,4508.7,10.94258238]
[1758387539863,0.25165098,4508.8,4508.7,15.84304122]
[1758387541893,0.49575098,4508.8,4508.7,15.84304122]
[1758387548472,0.25165098,4508.8,4508.7,15.84304122]
[1758387551780,0.48975098,4508.8,4508.7,15.84304122]
[1758387557538,0.25165098,4508.8,4508.7,15.84304122]
[1758387563793,0.25165098,4508.8,4508.7,12.16804122]
[1758387564077,0.25165098,4508.8,4508.7,15.84304122]
[1758387565274,0.25165098,4508.8,4508.7,7.26758238]
[1758387565471,0.25165098,4508.8,4508.7,12.16804122]
[1758387565652,0.25165098,4508.8,4508.7,15.84304122]
[1758387567076,0.25165098,4508.8,4508.7,12.16804122]
[1758387567378,0.25165098,4508.8,4508.7,15.84304122]
[1758387567537,0.25165098,4508.8,4508.7,12.16804122]
[1758387567739,0.25165098,4508.8,4508.7,15.84304122]
[1758387581646,0.25165098,4508.8,4508.7,7.26758238]
[1758387581939,0.25165098,4508.8,4508.7,15.84204122]
[1758387582652,0.47995098,4508.8,4508.7,10.94158238]
[1758387586476,0.25165098,4508.8,4508.7,10.94158238]
[1758387588173,0.12686392,4508.8,4508.7,10.94158238]
[1758387588528,0.12686392,4508.8,4508.7,7.26758238]
[1758387588760,0.12686392,4508.8,4508.7,10.94158238]
[1758387590473,0.12686438,4508.8,4508.7,10.94158238]
[1758387590629,0.36056438,4508.8,4508.7,10.94158238]
[1758387591830,0.12686438,4508.8,4508.7,10.94158238]
[1758387600239,0.36056438,4508.8,4508.7,15.84204122]
[1758387600441,0.36056438,4508.8,4508.7,10.94158238]
[1758387601101,0.2357,4508.8,4508.7,10.94158238]
[1758387601301,0.1268638,4508.8,4508.7,10.94158238]
[1758387602000,0.3605638,4508.8,4508.7,8.69081253]
[1758387603416,0.1268638,4508.8,4508.7,14.75561962]
[1758387603729,0.1268638,4508.8,4508.7,16.68558484]
[1758387603949,0.1268638,4508.8,4508.7,16.45308484]
[1758387604649,0.3522638,4508.8,4508.7,10.38827775]
[1758387604870,0.3522638,4508.8,4508.7,6.71427775]
[1758387605162,0.3522638,4508.8,4508.7,8.69081253]
[1758387606117,0.2254,4508.8,4508.7,8.69081253]
[1758387606431,0.002,4509.1,4509.0,6.00978664]
[1758387606750,0.002,4509.1,4509.0,9.68378664]
[1758387606950,0.002,4509.1,4509.0,9.91628664]
[1758387607142,0.002,4509.1,4509.0,11.92798161]
[1758387607744,0.002,4509.1,4509.0,12.01686033]
[1758387609417,0.002,4509.1,4509.0,11.78436033]
[1758387609623,0.002,4509.1,4509.0,12.01686033]
[1758387615545,0.2423,4509.1,4509.0,11.78436033]
[1758387615874,0.2423,4509.1,4509.0,11.78336033]
[1758387617599,0.2423,4509.1,4509.0,8.11036033]
[1758387617892,0.2423,4509.1,4509.0,6.77166536]
[1758387618046,0.2423,4509.1,4509.0,9.77166536]
[1758387622672,0.2423,4509.1,4509.0,6.09866536]
[1758387622863,0.2423,4509.1,4509.0,6.77166536]
[1758387632873,0.002,4509.1,4509.0,6.77166536]
[1758387641996,0.2423,4509.1,4509.0,6.77166536]
[1758387643336,0.002,4509.1,4509.0,6.77166536]
[1758387644838,0.2332,4509.1,4509.0,6.77166536]
[1758387645817,0.002,4509.1,4509.0,6.77166536]
[1758387646343,0.2332,4509.1,4509.0,0.08887872]
[1758387646546,0.2332,4509.1,4509.0,3.673]
[1758387648538,0.2332,4509.1,4509.0,5.89078664]
[1758387650167,0.2332,4509.1,4509.0,3.673]
[1758387651033,0.48125229,4509.1,4509.0,3.673]
[1758387651338,0.2332,4509.1,4509.0,3.673]
[1758387652872,0.2332,4509.1,4508.8,0.001]
[1758387653172,2.24552549,4509.0,4508.8,0.001]
[1758387653676,0.2312,4508.9,4508.8,0.001]
[1758387661176,2.44903583,4508.9,4508.8,0.001]
[1758387661388,2.98536279,4508.9,4508.8,0.001]
[1758387661878,7.89029487,4508.9,4508.8,0.001]
[1758387662080,8.55719496,4508.9,4508.8,0.001]
[1758387667479,18.71419496,4508.9,4508.8,0.001]
[1758387667683,18.71419496,4508.9,4508.6,0.001]
[1758387667684,2.21793421,4508.7,4508.6,0.001]
[1758387667887,6.94181853,4508.7,4508.6,0.001]
[1758387668082,7.14069436,4508.7,4508.6,0.001]
[1758387668619,7.22961832,4508.7,4508.6,0.001]
[1758387669387,10.90361832,4508.7,4508.6,0.001]
[1758387671094,18.06061832,4508.7,4508.6,0.001]
[1758387680099,22.9772504,4508.7,4508.6,0.001]
[1758387680280,22.9772504,4508.7,4508.3,0.001]
[1758387680281,2.2180818,4508.4,4508.3,0.001]
[1758387680478,10.8247399,4508.4,4508.3,0.001]
[1758387680780,6.1303818,4508.4,4508.3,0.001]
[1758387680993,6.21931012,4508.4,4508.3,0.001]
[1758387685615,5.98101012,4508.4,4508.3,0.001]
[1758387685778,7.67717027,4508.4,4508.3,0.001]
[1758387686321,7.91547027,4508.4,4508.3,0.001]
[1758387689403,1.78508847,4508.4,4508.3,0.001]
[1758387689608,5.48781449,4508.4,4508.3,0.2456]
[1758387689832,5.46008847,4508.4,4508.3,0.2456]
[1758387690031,5.46008847,4508.4,4508.3,0.001]
[1758387691237,5.46008847,4508.4,4508.3,0.2456]
[1758387691536,3.76392832,4508.4,4508.3,0.2456]
[1758387692104,3.79165434,4508.4,4508.3,0.2456]
[1758387692309,3.79165434,4508.4,4508.3,0.001]
[1758387692737,6.00973614,4508.4,4508.3,0.001]
[1758387692911,5.98201012,4508.4,4508.3,0.001]
[1758387693112,4.16653457,4508.4,4508.3,0.001]
[1758387693303,4.43256059,4508.4,4508.3,0.001]
[1758387693839,7.86926059,4508.4,4508.3,0.001]
[1758387694041,7.84153457,4508.4,4508.3,0.001]
[1758387694738,8.07983457,4508.4,4508.3,0.001]
[1758387695808,7.84153457,4508.4,4508.3,0.001]
[1758387699851,8.07983457,4508.4,4508.3,0.001]
[1758387701241,2.218131,4508.3,4508.2,0.001]
[1758387701552,2.85712029,4508.3,4508.2,0.001]
[1758387701920,2.94605038,4508.3,4508.2,0.001]
[1758387706451,2.70775038,4508.3,4508.2,0.001]
[1758387714369,2.21828498,4508.0,4507.6,0.1599995]
[1758387714578,0.02772909,4507.9,4507.6,0.1599995]
[1758387715440,0.02772909,4507.9,4507.3,2.2196098]
[1758387716377,0.02772909,4507.9,4507.4,0.16]
[1758387716675,0.02772909,4507.9,4507.5,0.16]
[1758387716863,0.02772909,4507.9,4507.6,0.16]
[1758387717978,0.02772971,4507.8,4507.6,0.16]
[1758387718966,0.02772848,4508.0,4507.6,0.16]
[1758387719550,0.02772848,4508.0,4507.3,2.21961139]
[1758387719756,0.02772848,4508.0,4507.7,0.16]
[1758387720171,2.24601715,4508.0,4507.7,0.16]
[1758387720477,0.02772848,4508.0,4507.4,2.21856846]
[1758387720675,0.02772848,4508.0,4507.8,0.16]
[1758387721047,0.02772848,4508.0,4507.5,0.16]
[1758387721379,0.02772848,4508.0,4507.6,0.16]
[1758387721975,2.24601561,4508.0,4507.6,0.16]
[1758387722173,2.21833665,4507.9,4507.6,0.16]
[1758387722373,0.02772971,4507.8,4507.4,0.16]
[1758387722679,0.02772971,4507.8,4507.5,0.16]
[1758387723275,0.02772848,4508.0,4507.6,0.16]
[1758387723985,0.02772848,4508.0,4507.5,2.21851735]
[1758387724276,0.02772848,4508.0,4507.7,0.16]
[1758387724477,0.02772848,4508.0,4507.3,3.675]
[1758387724682,2.2183617,4507.9,4507.5,0.16]
[1758387724847,0.02772971,4507.8,4507.5,0.16]
[1758387725484,0.02772971,4507.8,4507.5,0.161]
[1758387725792,2.2182886,4508.0,4507.5,0.161]
[1758387725793,0.02773032,4507.7,4507.5,0.161]
[1758387726801,0.02772909,4507.9,4507.5,0.161]
[1758387726970,2.24606149,4507.9,4507.5,0.161]
[1758387727174,0.232,4507.8,4507.5,0.001]
[1758387727488,0.02773032,4507.7,4507.5,0.001]
[1758387728375,0.02773094,4507.6,4507.5,0.001]
[1758387728576,0.232,4508.1,4507.5,0.001]
[1758387728577,0.02772848,4508.0,4507.5,0.001]
[1758387728779,0.232,4507.6,4507.5,0.001]
[1758387728995,0.02772971,4507.8,4507.5,0.001]
[1758387729380,2.24611103,4507.8,4507.5,0.001]
[1758387729579,0.02772971,4507.8,4507.5,0.001]
[1758387729780,2.24612759,4507.8,4507.5,0.001]
[1758387729980,2.21844203,4507.7,4507.5,0.001]
[1758387730181,0.02773094,4507.6,4507.5,0.001]
[1758387732002,0.02773032,4507.7,4507.5,0.001]
[1758387732809,2.24617514,4507.7,4507.5,0.001]
[1758387734277,0.02773032,4507.7,4507.5,0.001]
[1758387735779,0.16,4507.6,4507.5,0.001]
[1758387736277,0.18773094,4507.6,4507.5,0.001]
[1758387737094,0.43523094,4507.6,4507.5,0.001]
[1758387737299,0.18773094,4507.6,4507.5,0.001]
[1758387740800,0.43523094,4507.6,4507.5,0.001]
[1758387742887,0.43723094,4507.6,4507.5,0.001]
[1758387743617,0.18973094,4507.6,4507.5,0.001]
[1758387749100,0.43723094,4507.6,4507.5,0.001]
[1758387750210,3.18911352,4507.6,4507.5,0.001]
[1758387750642,0.97063806,4507.6,4507.5,0.001]
[1758387751734,3.18911352,4507.6,4507.5,0.001]
[1758387754831,0.97063806,4507.6,4507.5,0.001]
[1758387755094,0.43723094,4507.6,4507.5,0.001]
[1758387755754,2.6557064,4507.6,4507.5,0.001]
[1758387757667,0.43723094,4507.6,4507.5,0.001]
[1758387757959,0.18973094,4507.6,4507.5,0.001]
[1758387758769,2.4082064,4507.6,4507.5,0.001]
[1758387760067,0.18973094,4507.6,4507.5,0.001]
[1758387761668,2.6557064,4507.6,4507.5,0.001]
[1758387761866,3.18911821,4507.6,4507.5,0.001]
[1758387767559,3.18751821,4507.6,4507.5,0.001]
[1758387775055,2.6541064,4507.6,4507.5,0.001]
[1758387777980,2.86232289,4507.6,4507.5,0.001]
[1758387778545,2.6541064,4507.6,4507.5,0.001]
[1758387779161,2.21852468,4507.5,4507.3,0.001]
[1758387779360,0.64385303,4507.6,4507.3,0.001]
[1758387779361,2.24630607,4507.4,4507.3,0.001]
[1758387779580,2.73357552,4507.4,4507.3,0.001]
[1758387780082,2.82252143,4507.4,4507.3,0.001]
[1758387783086,2.33525198,4507.4,4507.3,0.001]
[1758387783584,0.08894591,4507.4,4507.3,0.001]
[1758387783785,0.08894591,4507.4,4507.3,0.161]
[1758387784152,0.11667808,4507.4,4507.3,0.161]
[1758387785075,0.11667808,4507.4,4507.3,0.001]
[1758387797552,2.56685198,4507.4,4507.3,0.001]
[1758387797701,0.34827808,4507.4,4507.3,0.001]
[1758387799231,2.56685198,4507.4,4507.3,0.001]
[1758387800145,0.34827808,4507.4,4507.3,0.001]
[1758387800345,2.56685198,4507.4,4507.3,0.001]
[1758387800928,0.11667808,4507.4,4507.3,0.001]
[1758387801128,0.02773217,4507.4,4507.3,0.001]
[1758387801431,0.02973155,4507.5,4507.3,0.001]
[1758387801631,0.26133155,4507.5,4507.3,0.001]
[1758387805118,0.02973155,4507.5,4507.3,0.001]
[1758387805353,0.2316,4507.4,4507.3,0.001]
[1758387812664,2.4501739,4507.4,4507.3,0.001]
[1758387813375,0.2316,4507.4,4507.3,0.001]
[1758387815203,2.4501739,4507.4,4507.3,0.001]
[1758387815697,0.2316,4507.4,4507.3,0.001]
[1758387818592,2.4501739,4507.4,4507.3,0.001]
[1758387819392,0.2316,4507.4,4507.3,0.001]
[1758387821261,2.4501739,4507.4,4507.3,0.001]
[1758387822374,0.2316,4507.4,4507.3,0.001]
[1758387824324,2.4501739,4507.4,4507.3,0.001]
[1758387824823,0.2316,4507.4,4507.3,0.001]
[1758387831574,2.4501739,4507.4,4507.3,0.001]
[1758387831776,3.29650145,4507.4,4507.3,0.001]
[1758387832712,1.07792755,4507.4,4507.3,0.001]
[1758387833095,3.29650145,4507.4,4507.3,0.001]
[1758387833409,3.38544915,4507.4,4507.3,0.001]
[1758387841352,1.19460742,4507.4,4507.3,0.001]
[1758387841640,0.11667987,4507.4,4507.3,0.001]
[1758387842613,0.02773217,4507.4,4507.3,0.001]
[1758387842813,0.02973155,4507.5,4507.3,0.001]
[1758387843237,0.27063155,4507.5,4507.3,0.001]
[1758387850294,0.02973155,4507.5,4507.3,0.001]
[1758387857403,0.002,4507.5,4507.3,0.001]
[1758387857604,0.172,4507.5,4507.3,0.001]
[1758387858502,0.02773217,4507.4,4507.3,0.001]
[1758387858665,0.47638456,4507.4,4507.3,0.001]
[1758387859266,0.56532652,4507.4,4507.3,0.001]
[1758387860615,0.35717413,4507.4,4507.3,0.001]
[1758387865232,0.11667413,4507.4,4507.3,0.001]
[1758387870547,0.02773217,4507.4,4507.3,0.001]
[1758387870743,0.02973155,4507.5,4507.3,0.001]
[1758387871045,0.35917351,4507.5,4507.3,0.001]
[1758387871344,0.11867351,4507.5,4507.3,0.001]
[1758387873353,0.35917351,4507.5,4507.3,0.001]
[1758387873724,0.11867351,4507.5,4507.3,0.001]
[1758387874612,0.02973155,4507.5,4507.3,0.001]
[1758387874828,0.08894196,4507.4,4507.3,0.001]
[1758387879784,0.32944196,4507.4,4507.3,0.001]
[1758387881482,2.54801586,4507.4,4507.3,0.001]
[1758387885691,0.32944196,4507.4,4507.3,0.001]
[1758387887115,2.54801586,4507.4,4507.3,0.001]
[1758387888286,7.57645443,4507.4,4507.3,0.001]
[1758387901884,7.5762405,4507.4,4507.3,0.001]
[1758387902978,17.7332405,4507.4,4507.3,0.001]
[1758387903182,2.21867234,4507.2,4507.1,0.01]
[1758387903361,9.1284071,4507.2,4507.1,0.01]
[1758387903679,9.59420282,4507.2,4507.1,0.01]
[1758387903843,9.68316278,4507.2,4507.1,0.01]
[1758387913172,9.44186278,4507.2,4507.1,0.01]
[1758387913795,9.68316278,4507.2,4507.1,0.01]
[1758387918216,5.21872157,4507.1,4507.0,0.001]
[1758387918416,5.79968559,4507.1,4507.0,0.001]
[1758387918927,5.95968559,4507.1,4507.0,0.001]
[1758387921627,6.19588559,4507.1,4507.0,0.001]
[1758387922653,11.10369162,4507.1,4507.0,0.001]
[1758387924002,6.19588559,4507.1,4507.0,0.001]
[1758387924223,2.21882003,4506.9,4506.8,0.001]
[1758387924567,6.58862869,4506.9,4506.8,0.001]
[1758387924764,6.79709344,4506.9,4506.8,0.001]
[1758387924974,6.88605834,4506.9,4506.8,0.001]
[1758387925680,6.88610559,4506.9,4506.8,0.001]
[1758387926370,9.88610559,4506.9,4506.8,0.001]
[1758387929462,9.8861469,4506.9,4506.8,0.001]
[1758387930168,2.21891849,4506.7,4506.6,0.001]
[1758387930368,7.27596817,4506.7,4506.6,0.001]
[1758387930577,7.24823169,4506.7,4506.6,0.001]
[1758387930880,7.3371966,4506.7,4506.6,0.001]
[1758387934767,10.3371966,4506.7,4506.6,0.001]
[1758387935264,10.5733966,4506.7,4506.6,0.001]
[1758387937898,15.48120263,4506.7,4506.6,0.001]
[1758387938200,2.21906621,4506.4,4506.3,0.001]
[1758387938408,9.38112357,4506.4,4506.3,0.001]
[1758387938697,9.58958525,4506.4,4506.3,0.001]
[1758387938898,9.74958525,4506.4,4506.3,0.001]
[1758387940993,16.90658525,4506.4,4506.3,0.001]
[1758387943215,21.81439128,4506.4,4506.3,0.001]
[1758387943987,21.81439128,4506.4,4505.6,0.001]
[1758387943988,2.21941096,4505.7,4505.6,0.001]
[1758387944185,9.50220617,4505.7,4505.6,0.001]
[1758387944402,9.47446354,4505.7,4505.6,0.001]
[1758387944917,10.14184728,4505.7,4505.6,0.001]
[1758387946707,10.36984728,4505.7,4505.6,0.001]
[1758387948921,10.14184728,4505.7,4505.6,0.001]
[1758387949221,10.36984728,4505.7,4505.6,0.001]
[1758387957237,10.36938319,4505.7,4505.6,0.001]
[1758387964327,10.14138319,4505.7,4505.6,0.001]
[1758387964733,10.38518319,4505.7,4505.6,0.001]
[1758387969365,2.21965728,4505.2,4505.1,0.011]
[1758387969521,5.92240299,4505.2,4505.1,0.011]
[1758387969722,5.89465728,4505.2,4505.1,0.171]
[1758387970074,5.89465728,4505.2,4505.1,0.011]
[1758387970356,6.10264448,4505.2,4505.1,0.011]
[1758387976884,2.42764448,4505.2,4505.1,0.011]
[1758387977070,6.13039019,4505.2,4505.1,0.011]
[1758387977233,6.10264448,4505.2,4505.1,0.011]
[1758387978732,6.80521653,4505.2,4505.1,0.011]
[1758387978962,7.47268341,4505.2,4505.1,0.011]
[1758387983075,10.47268341,4505.2,4505.1,0.011]
[1758387984885,2.21990365,4504.7,4504.6,0.001]
[1758387985044,5.89490365,4504.7,4504.6,0.001]
[1758387986803,5.89490365,4504.7,4504.6,0.161]
[1758387987086,3.675,4504.7,4504.6,0.161]
[1758387987257,5.92265244,4504.7,4504.6,0.161]
[1758387987585,3.675,4504.7,4504.6,0.161]
[1758387987781,0.02774879,4504.7,4504.6,0.161]
[1758387988011,3.675,4504.7,4504.6,0.161]
[1758387990764,3.70274879,4504.7,4504.6,0.161]
[1758387992187,3.70274879,4504.7,4504.6,0.001]
[1758387992902,3.675,4504.7,4504.6,0.001]
[1758387995610,0.02774817,4504.8,4504.6,0.001]
[1758387995900,3.675,4504.7,4504.6,0.001]
[1758387997523,5.89490365,4504.7,4504.6,0.001]
[1758387997904,3.675,4504.7,4504.6,0.001]
[1758387998103,3.70274879,4504.7,4504.6,0.001]
[1758388000035,5.92265244,4504.7,4504.6,0.001]
[1758388000215,5.89490365,4504.7,4504.6,0.001]
[1758388000830,3.675,4504.7,4504.6,0.001]
[1758388001125,3.70274879,4504.7,4504.6,0.001]
[1758388002417,3.60274879,4504.7,4504.6,0.001]
[1758388003232,0.16,4505.0,4504.6,0.001]
[1758388003516,6.001,4507.4,4504.9,6.07772685]
[1758388003517,3.611,4505.3,4504.9,6.07772685]
[1758388003722,3.611,4505.4,4505.0,0.16]
[1758388003925,0.20820598,4505.3,4505.0,0.16]
[1758388004217,3.611,4505.4,4505.0,0.16]
[1758388004517,5.83056132,4505.4,4505.0,0.16]
[1758388004688,5.83056132,4505.4,4505.1,0.16]
[1758388004889,5.83056132,4505.4,4505.2,0.16]
[1758388006718,5.83056132,4505.4,4505.0,0.16]
[1758388006904,5.83056132,4505.4,4504.9,6.07772685]
[1758388007129,5.83056132,4505.4,4505.1,0.16]
[1758388007334,2.21964289,4505.3,4504.6,0.001]
[1758388007538,3.675,4505.2,4504.8,0.16]
[1758388007723,3.675,4505.3,4504.8,0.16]
[1758388008714,3.675,4505.3,4504.8,2.3798336]
[1758388008913,3.675,4505.3,4504.9,0.16]
[1758388010933,3.675,4505.3,4504.7,2.82776694]
[1758388011136,2.2195631,4505.4,4504.8,0.96004857]
[1758388011449,3.675,4505.3,4504.9,0.16]
[1758388013436,3.675,4505.3,4504.7,2.37989425]
[1758388020331,3.675,4505.3,4504.8,2.21985045]
[1758388020535,3.9061,4505.3,4504.8,2.21985045]
[1758388021571,3.9061,4505.3,4504.7,2.37989865]
[1758388022074,3.9061,4505.3,4504.7,2.21989865]
[1758388022957,3.9061,4505.3,4504.8,2.21985235]
[1758388025987,3.9061,4505.3,4504.7,2.21988932]
[1758388027286,0.2311,4505.3,4504.7,2.21988932]
[1758388029257,0.2311,4505.3,4504.8,2.21984163]
[1758388031367,0.002,4505.4,4504.8,2.21984163]
[1758388031768,2.2215704,4505.4,4504.9,4.90947773]
[1758388031975,2.4702704,4505.4,4504.9,4.90947773]
[1758388033066,0.2507,4505.4,4504.9,4.90947773]
[1758388033265,0.2507,4505.4,4504.9,5.6225203]
[1758388033496,0.45896592,4505.4,4504.9,5.6225203]
[1758388034079,0.45896592,4505.4,4504.9,4.90947773]
[1758388038392,2.67853479,4505.4,4504.9,4.90947773]
[1758388038602,0.2487,4505.3,4504.9,4.90947773]
[1758388038971,2.4683093,4505.3,4504.9,4.90947773]
[1758388039229,0.27644571,4505.2,4504.6,4.34233919]
[1758388039430,2.2474127,4505.2,4504.6,3.675]
[1758388039609,0.2487,4505.1,4504.6,3.675]
[1758388039828,0.2487,4505.0,4504.6,3.675]
[1758388047037,0.2487,4505.0,4504.6,0.001]
[1758388047218,0.2487,4505.0,4504.6,3.675]
[1758388048612,0.2487,4505.0,4504.6,0.001]
[1758388048819,0.02774571,4505.2,4504.6,3.675]
[1758388049026,0.2487,4505.1,4504.6,3.675]
[1758388049229,0.2487,4505.0,4504.6,3.675]
[1758388049452,0.2487,4505.0,4504.6,5.89494172]
[1758388049632,0.27644571,4505.2,4504.6,5.89494172]
[1758388050050,0.27644571,4505.2,4504.6,3.675]
[1758388052363,0.27644571,4505.2,4504.6,5.89494335]
[1758388052660,0.002,4505.4,4504.8,2.21984025]
[1758388054047,0.002,4505.4,4504.8,2.21985356]
[1758388054252,0.002,4505.4,4504.7,7.28936961]
[1758388056055,2.22156176,4505.4,4504.7,7.28936961]
[1758388056232,0.002,4505.4,4504.7,7.28936961]
[1758388056743,0.002,4505.4,4504.8,2.21985327]
[1758388057623,0.002,4505.4,4504.9,0.16]
[1758388058122,0.002,4505.4,4504.8,2.21985327]
[1758388059660,0.002,4505.4,4504.9,2.37976326]
[1758388060870,0.002,4505.4,4505.0,2.21974023]
[1758388061869,0.002,4505.4,4504.9,2.37979756]
[1758388062935,0.002,4505.4,4505.0,2.2197553]
[1758388063131,0.002,4505.4,4504.9,0.16]
[1758388063336,0.002,4505.4,4504.9,2.37978847]
[1758388063965,0.002,4505.4,4505.0,2.2197493]
[1758388064954,0.002,4505.4,4504.9,2.37978968]
[1758388066647,0.002,4505.4,4505.0,0.16]
[1758388067644,0.002,4505.4,4505.0,2.21973488]
[1758388068472,0.002,4505.4,4504.9,2.21979184]
[1758388068873,0.002,4505.4,4504.9,2.37979184]
[1758388070286,0.002,4505.4,4505.0,2.21973355]
[1758388070475,0.002,4505.4,4505.0,2.37973355]
[1758388070676,0.002,4505.4,4505.0,2.21973355]
[1758388070896,0.002,4505.4,4505.1,0.16]
[1758388071078,0.002,4505.4,4504.9,2.21979148]
[1758388071267,0.002,4505.4,4505.0,0.16]
[1758388073084,0.002,4505.4,4505.0,2.37974357]
[1758388073265,0.002,4505.4,4505.0,2.21974357]
[1758388074757,0.002,4505.4,4504.9,2.21978825]
[1758388074981,0.002,4505.4,4504.9,2.37976975]
[1758388075187,0.002,4505.4,4504.9,2.21976975]
[1758388075484,0.002,4505.4,4505.0,0.16]
[1758388075856,0.002,4505.4,4505.0,2.3797441]
[1758388077591,0.002,4505.4,4505.0,0.16]
[1758388078096,0.002,4505.4,4504.9,2.21980444]
[1758388078306,0.002,4505.4,4504.9,2.37980444]
[1758388078802,0.002,4505.4,4504.9,2.21980444]
[1758388081904,0.002,4505.4,4505.0,2.37975271]
[1758388082614,0.002,4505.4,4505.1,0.16]
[1758388083029,0.002,4505.4,4505.0,2.21975271]
[1758388083314,0.002,4505.4,4505.0,2.37975271]
[1758388085401,0.002,4505.4,4505.0,0.16]
[1758388086012,0.002,4505.4,4504.9,4.90947773]
[1758388086191,0.002,4505.4,4505.0,2.94986218]
[1758388086607,0.002,4505.4,4505.1,2.2197062]
[1758388086780,0.002,4505.4,4505.1,2.3797062]
[1758388086979,0.002,4505.4,4505.1,0.16]
[1758388087420,0.002,4505.4,4505.1,2.37970519]
[1758388088425,0.002,4505.4,4505.2,2.21965425]
[1758388088629,0.002,4505.4,4505.3,2.21960801]
[1758388089830,0.002,4505.4,4505.2,8.28103004]
[1758388092431,0.002,4505.4,4505.2,8.12103004]
[1758388093713,0.002,4505.4,4505.2,3.21155231]
[1758388097551,0.002,4505.4,4505.3,2.21960801]
[1758388098860,0.002,4505.4,4505.3,2.49998097]
[1758388100268,0.002,4505.4,4505.3,2.74458097]
[1758388102583,0.002,4505.4,4505.3,7.20958097]
[1758388102874,0.002,4505.4,4505.3,7.36958097]
[1758388104780,0.002,4505.4,4505.3,7.20958097]
[1758388112665,0.002,4505.4,4505.3,4.98997296]
[1758388113364,0.002,4505.4,4505.3,7.20958097]
[1758388113679,0.002,4505.4,4505.3,4.98997296]
[1758388114493,0.002,4505.4,4505.3,7.20958097]
[1758388116960,0.002,4505.4,4505.3,4.98997296]
[1758388117802,0.002,4505.4,4505.3,7.20958097]
[1758388119800,0.002,4505.4,4505.3,4.98997296]
[1758388120771,0.002,4505.4,4505.3,7.20958097]
[1758388125388,0.2333,4505.4,4505.3,7.20958097]
[1758388125706,0.002,4505.4,4505.3,7.20958097]
[1758388136637,0.2333,4505.4,4505.3,3.9176]
[1758388136840,0.2333,4505.4,4505.3,3.673]
[1758388137003,0.2333,4505.4,4505.2,3.673]
[1758388137337,0.2313,4505.3,4505.2,3.673]
[1758388138103,0.2313,4505.3,4505.0,0.2333]
[1758388138441,0.2313,4505.3,4505.1,3.673]
[1758388138660,0.2313,4505.2,4505.1,3.673]
[1758388140151,0.2313,4505.2,4505.0,2.45301792]
[1758388140357,0.2313,4505.2,4505.0,6.12601792]
[1758388140851,0.2313,4505.2,4505.1,2.21970655]
[1758388141033,0.002,4505.4,4505.1,2.21970655]
[1758388141233,0.2313,4505.3,4505.1,2.21970655]
[1758388141530,0.002,4505.4,4505.1,2.21970655]
[1758388141735,0.002,4505.4,4505.0,3.9063]
[1758388141736,0.2313,4505.3,4505.0,6.12604647]
[1758388142062,0.2313,4505.2,4505.0,6.12604647]
[1758388142287,0.002,4505.4,4505.0,6.12604647]
[1758388142565,0.2313,4505.1,4505.0,6.12604647]
[1758388142723,0.2313,4505.1,4505.0,6.96064047]
[1758388142924,0.2313,4505.1,4505.0,4.740894]
[1758388143258,0.2313,4505.1,4505.0,6.96064982]
[1758388143850,0.2313,4505.1,4505.0,4.740894]
[1758388144859,0.2313,4505.1,4505.0,6.96064982]
[1758388145759,0.2313,4505.1,4505.0,4.740894]
[1758388147193,0.2313,4505.1,4505.0,6.96064982]
[1758388147494,0.2313,4505.1,4505.0,4.740894]
[1758388147663,0.2313,4505.1,4505.0,6.96064982]
[1758388148391,0.2313,4505.1,4505.0,4.740894]
[1758388148757,0.2313,4505.1,4505.0,6.96064982]
[1758388149893,0.2454,4505.4,4505.0,6.96064982]
[1758388150055,0.2434,4505.3,4505.0,6.12605582]
[1758388150255,0.002,4505.4,4505.1,2.21970655]
[1758388150455,0.2434,4505.3,4505.0,3.9063]
[1758388151057,0.2434,4505.2,4505.0,3.9063]
[1758388151260,0.2434,4505.1,4505.0,3.9063]
[1758388152259,0.2434,4505.1,4505.0,6.12605582]
[1758388152792,0.2434,4505.1,4505.0,5.89275582]
[1758388154180,0.23,4505.3,4505.0,5.89275582]
[1758388154493,0.002,4505.4,4505.0,5.89275582]
[1758388154693,0.23,4505.3,4505.0,5.89275582]
[1758388154881,0.23,4505.2,4505.0,5.89275582]
[1758388156895,0.23,4505.2,4505.0,3.673]
[1758388157345,0.02974448,4505.4,4504.7,2.2198943]
[1758388157598,0.02974448,4505.4,4504.8,3.673]
[1758388157599,0.23,4505.1,4504.8,3.673]
[1758388157902,0.23,4505.0,4504.8,3.673]
[1758388158062,0.23,4504.9,4504.8,3.673]
[1758388160075,0.23,4504.9,4504.7,3.673]
[1758388160271,0.23,4504.8,4504.7,3.673]
[1758388161781,0.66738374,4505.2,4504.6,0.001]
[1758388162000,0.23,4504.7,4504.0,2.22024333]
[1758388162307,0.23,4504.6,4504.1,3.673]
[1758388162684,2.2198558,4504.8,4504.1,3.673]
[1758388163011,0.23,4504.5,4504.1,3.673]
[1758388164005,0.66748322,4504.6,4504.1,3.673]
[1758388164316,0.23,4504.4,4504.1,3.673]
[1758388165284,0.23,4504.4,4504.0,2.22023294]
[1758388165480,0.23,4504.4,4504.1,5.89819245]
[1758388166216,0.92523263,4504.6,4504.1,5.89819245]
[1758388166523,0.23,4504.5,4504.1,5.89819245]
[1758388166908,0.23,4504.5,4504.1,5.89919245]